[Event "Titled Tuesday Blitz February 07 Early 2023"]
[White "Mouhamad, Joachim"]
[Black "Onslow, Alfie"]
[WhiteFideId "656410"]
[BlackFideId "436976"]
[WhiteElo "2238"]
[BlackElo "2157"]
[Result "1-0"]
[Round "07"]
[TimeControl "180+2"]
[Date "2023.02.07"]
[WhiteClock "0:00:33"]
[BlackClock "0:00:01"]

1. e4 {[%clk 0:03:00]}  c5 {[%clk 0:03:00]} 2. Nf3 {[%clk 0:03:01]}  d6 {[%clk 0:03:00]} 3. d4 {[%clk 0:03:01]}  cxd4 {[%clk 0:03:01]} 4. Nxd4 {[%clk 0:03:00]}  Nf6 {[%clk 0:03:01]} 5. Nc3 {[%clk 0:03:01]}  a6 {[%clk 0:03:02]} 6. f3 {[%clk 0:03:01]}  e5 {[%clk 0:02:59]} 7. Nb3 {[%clk 0:03:01]}  Be6 {[%clk 0:02:53]} 8. Be3 {[%clk 0:03:02]}  h5 {[%clk 0:02:45]} 9. Nd5 {[%clk 0:03:01]}  Nxd5 {[%clk 0:02:32]} 10. exd5 {[%clk 0:03:02]}  Bf5 {[%clk 0:02:31]} 11. Be2 {[%clk 0:03:02]}  Be7 {[%clk 0:02:31]} 12. O-O {[%clk 0:03:01]}  Nd7 {[%clk 0:02:30]} 13. c4 {[%clk 0:03:01]}  Rc8 {[%clk 0:02:29]} 14. Qd2 {[%clk 0:03:01]}  b6 {[%clk 0:01:46]} 15. Rac1 {[%clk 0:03:01]}  a5 {[%clk 0:01:45]} 16. Na1 {[%clk 0:03:00]}  Nc5 {[%clk 0:01:30]} 17. Nc2 {[%clk 0:03:00]}  h4 {[%clk 0:01:25]} 18. Na3 {[%clk 0:02:59]}  O-O {[%clk 0:01:03]} 19. Nb5 {[%clk 0:02:58]}  Bd7 {[%clk 0:00:57]} 20. Nc3 {[%clk 0:02:42]}  f5 {[%clk 0:00:52]} 21. f4 {[%clk 0:02:40]}  e4 {[%clk 0:00:51]} 22. b3 {[%clk 0:02:35]}  Bf6 {[%clk 0:00:49]} 23. Rb1 {[%clk 0:02:35]}  Qe8 {[%clk 0:00:34]} 24. a3 {[%clk 0:02:33]}  a4 {[%clk 0:00:28]} 25. b4 {[%clk 0:02:27]}  Nb3 {[%clk 0:00:28]} 26. Qc2 {[%clk 0:02:22]}  b5 {[%clk 0:00:24]} 27. c5 {[%clk 0:01:38]}  dxc5 {[%clk 0:00:24]} 28. bxc5 {[%clk 0:01:38]}  Nxc5 {[%clk 0:00:15]} 29. Nxb5 {[%clk 0:01:33]}  Nd3 {[%clk 0:00:15]} 30. Qxa4 {[%clk 0:01:30]}  Ra8 {[%clk 0:00:12]} 31. Qb3 {[%clk 0:01:27]}  Bxb5 {[%clk 0:00:11]} 32. Qxb5 {[%clk 0:01:26]}  Qxb5 {[%clk 0:00:12]} 33. Rxb5 {[%clk 0:01:27]}  Rxa3 {[%clk 0:00:11]} 34. d6 {[%clk 0:01:23]}  Rd8 {[%clk 0:00:11]} 35. Rxf5 {[%clk 0:01:21]}  Rxd6 {[%clk 0:00:10]} 36. Rb5 {[%clk 0:01:16]}  Rc6 {[%clk 0:00:09]} 37. Bh5 {[%clk 0:01:14]}  Rc2 {[%clk 0:00:08]} 38. Rb8+ {[%clk 0:01:10]}  Kh7 {[%clk 0:00:08]} 39. f5 {[%clk 0:01:11]}  Ne5 {[%clk 0:00:06]} 40. Bf4 {[%clk 0:01:03]}  Raa2 {[%clk 0:00:06]} 41. g4 {[%clk 0:00:50]}  Rg2+ {[%clk 0:00:06]} 42. Kh1 {[%clk 0:00:51]}  h3 {[%clk 0:00:05]} 43. Rc1 {[%clk 0:00:45]}  Raf2 {[%clk 0:00:05]} 44. Bg3 {[%clk 0:00:40]}  Rc2 {[%clk 0:00:05]} 45. Ra1 {[%clk 0:00:37]}  Ra2 {[%clk 0:00:05]} 46. Rab1 {[%clk 0:00:38]}  Rac2 {[%clk 0:00:04]} 47. g5 {[%clk 0:00:31]}  Bxg5 {[%clk 0:00:03]} 48. Bxe5 {[%clk 0:00:32]}  Bf6 {[%clk 0:00:02]} 49. Bg6+ {[%clk 0:00:32]}  Kh6 {[%clk 0:00:03]} 50. Bf4+ {[%clk 0:00:32]}  Bg5 {[%clk 0:00:01]} 51. Rh8# {[%clk 0:00:33]} 1-0


[Site "https://www.chess.com"]

[Event "Titled Tuesday Blitz February 07 Early 2023"]
[White "Mrudul Dehankar"]
[Black "Serpi, Andrea"]
[WhiteFideId "25096990"]
[BlackFideId "2847499"]
[WhiteElo "2030"]
[BlackElo "2191"]
[Result "1-0"]
[Round "07"]
[TimeControl "180+2"]
[Date "2023.02.07"]
[WhiteClock "0:00:03"]
[BlackClock "0:00:52"]

1. e4 {[%clk 0:02:55]}  e6 {[%clk 0:02:59]} 2. d4 {[%clk 0:02:54]}  d5 {[%clk 0:03:00]} 3. e5 {[%clk 0:02:55]}  c5 {[%clk 0:02:59]} 4. Nf3 {[%clk 0:02:55]}  Nc6 {[%clk 0:02:59]} 5. c3 {[%clk 0:02:56]}  Qb6 {[%clk 0:02:58]} 6. Bd3 {[%clk 0:02:53]}  cxd4 {[%clk 0:02:55]} 7. O-O {[%clk 0:02:48]}  Bd7 {[%clk 0:02:54]} 8. Re1 {[%clk 0:02:47]}  Bc5 {[%clk 0:02:52]} 9. b4 {[%clk 0:02:42]}  Be7 {[%clk 0:02:50]} 10. b5 {[%clk 0:02:42]}  Na5 {[%clk 0:02:49]} 11. Nxd4 {[%clk 0:02:40]}  Rc8 {[%clk 0:02:48]} 12. Qg4 {[%clk 0:02:33]}  Kf8 {[%clk 0:02:45]} 13. Qf3 {[%clk 0:02:24]}  Nc4 {[%clk 0:02:40]} 14. a4 {[%clk 0:02:17]}  Bc5 {[%clk 0:02:37]} 15. Bxc4 {[%clk 0:02:07]}  dxc4 {[%clk 0:02:36]} 16. a5 {[%clk 0:01:49]}  Qd8 {[%clk 0:02:29]} 17. Ba3 {[%clk 0:01:44]}  Bxa3 {[%clk 0:02:26]} 18. Nxa3 {[%clk 0:01:42]}  Qe7 {[%clk 0:02:19]} 19. Qxb7 {[%clk 0:01:35]}  Nh6 {[%clk 0:02:16]} 20. Nc6 {[%clk 0:01:23]}  Qe8 {[%clk 0:02:00]} 21. Nxa7 {[%clk 0:01:21]}  Rb8 {[%clk 0:01:59]} 22. Qc7 {[%clk 0:01:20]}  Nf5 {[%clk 0:01:53]} 23. Qxc4 {[%clk 0:01:08]}  h5 {[%clk 0:01:52]} 24. b6 {[%clk 0:01:06]}  h4 {[%clk 0:01:52]} 25. N3b5 {[%clk 0:01:06]}  h3 {[%clk 0:01:51]} 26. Nc7 {[%clk 0:01:01]}  Qe7 {[%clk 0:01:51]} 27. g3 {[%clk 0:00:57]}  Qg5 {[%clk 0:01:37]} 28. Rad1 {[%clk 0:00:48]}  Nh4 {[%clk 0:01:32]} 29. Qe4 {[%clk 0:00:43]}  Ba4 {[%clk 0:01:21]} 30. Qxa4 {[%clk 0:00:26]}  Nf3+ {[%clk 0:01:21]} 31. Kh1 {[%clk 0:00:16]}  Nxe1 {[%clk 0:01:21]} 32. Rxe1 {[%clk 0:00:16]}  Qd2 {[%clk 0:01:21]} 33. Qe4 {[%clk 0:00:06]}  Qxf2 {[%clk 0:01:18]} 34. Nc6 {[%clk 0:00:05]}  Rh5 {[%clk 0:00:52]} 35. Nxb8 {[%clk 0:00:03]} 1-0


[Site "https://www.chess.com"]

[Event "Titled Tuesday Blitz February 07 Early 2023"]
[White "Matveeva, Olga"]
[Black "Von Buelow, Georg"]
[WhiteFideId "24107018"]
[BlackFideId "4620658"]
[WhiteElo "2128"]
[BlackElo "2345"]
[Result "1/2-1/2"]
[Round "07"]
[TimeControl "180+2"]
[Date "2023.02.07"]
[WhiteClock "0:00:51"]
[BlackClock "0:01:35"]

1. d4 {[%clk 0:03:00]}  Nf6 {[%clk 0:02:53]} 2. c4 {[%clk 0:03:00]}  g6 {[%clk 0:02:54]} 3. g3 {[%clk 0:03:01]}  Bg7 {[%clk 0:02:53]} 4. Bg2 {[%clk 0:03:01]}  c6 {[%clk 0:02:54]} 5. Nf3 {[%clk 0:03:01]}  d5 {[%clk 0:02:54]} 6. b3 {[%clk 0:03:01]}  O-O {[%clk 0:02:54]} 7. O-O {[%clk 0:03:01]}  Bf5 {[%clk 0:02:55]} 8. Nc3 {[%clk 0:02:59]}  Ne4 {[%clk 0:02:55]} 9. Bb2 {[%clk 0:02:57]}  Nxc3 {[%clk 0:02:54]} 10. Bxc3 {[%clk 0:02:56]}  Be4 {[%clk 0:02:55]} 11. Rc1 {[%clk 0:02:47]}  a5 {[%clk 0:02:54]} 12. Qd2 {[%clk 0:02:35]}  a4 {[%clk 0:02:46]} 13. Rfd1 {[%clk 0:02:24]}  e6 {[%clk 0:02:43]} 14. Bb4 {[%clk 0:02:18]}  Re8 {[%clk 0:02:42]} 15. Ne5 {[%clk 0:02:13]}  Bxg2 {[%clk 0:02:41]} 16. Kxg2 {[%clk 0:02:12]}  Nd7 {[%clk 0:02:41]} 17. Nxd7 {[%clk 0:02:02]}  Qxd7 {[%clk 0:02:41]} 18. e3 {[%clk 0:02:03]}  Ra6 {[%clk 0:02:32]} 19. Qd3 {[%clk 0:01:51]}  h5 {[%clk 0:02:30]} 20. h4 {[%clk 0:01:49]}  axb3 {[%clk 0:02:24]} 21. axb3 {[%clk 0:01:48]}  Ra2 {[%clk 0:02:24]} 22. Rc2 {[%clk 0:01:44]}  Rea8 {[%clk 0:02:24]} 23. Rxa2 {[%clk 0:01:40]}  Rxa2 {[%clk 0:02:25]} 24. Rd2 {[%clk 0:01:41]}  Ra1 {[%clk 0:02:19]} 25. Bc3 {[%clk 0:01:35]}  Ra3 {[%clk 0:02:15]} 26. Qb1 {[%clk 0:01:34]}  Qe8 {[%clk 0:02:09]} 27. Ra2 {[%clk 0:01:32]}  Qa8 {[%clk 0:02:09]} 28. Rxa3 {[%clk 0:01:15]}  Qxa3 {[%clk 0:02:10]} 29. cxd5 {[%clk 0:01:11]}  exd5 {[%clk 0:02:07]} 30. Qb2 {[%clk 0:01:07]}  Qa6 {[%clk 0:02:05]} 31. Bb4 {[%clk 0:01:03]}  Bf6 {[%clk 0:01:57]} 32. Qa3 {[%clk 0:01:00]}  Qxa3 {[%clk 0:01:46]} 33. Bxa3 {[%clk 0:01:01]}  Bd8 {[%clk 0:01:46]} 34. Kf3 {[%clk 0:00:57]}  Bc7 {[%clk 0:01:44]} 35. e4 {[%clk 0:00:51]}  f6 {[%clk 0:01:35]} 1/2-1/2


[Site "https://www.chess.com"]

[Event "Titled Tuesday Blitz February 07 Early 2023"]
[White "Good, Daniel"]
[Black "Hoffmann, Asa"]
[WhiteFideId "1302388"]
[BlackFideId "2001470"]
[WhiteElo "2141"]
[BlackElo "2185"]
[Result "1-0"]
[Round "07"]
[TimeControl "180+2"]
[Date "2023.02.07"]
[WhiteClock "0:00:11"]
[BlackClock "0:00:09"]

1. e4 {[%clk 0:03:00]}  d6 {[%clk 0:02:56]} 2. d4 {[%clk 0:02:58]}  Nf6 {[%clk 0:02:55]} 3. Nc3 {[%clk 0:02:55]}  c6 {[%clk 0:02:55]} 4. Nf3 {[%clk 0:02:54]}  Bg4 {[%clk 0:02:54]} 5. Be2 {[%clk 0:02:54]}  e6 {[%clk 0:02:53]} 6. h3 {[%clk 0:02:54]}  Bh5 {[%clk 0:02:53]} 7. Be3 {[%clk 0:02:50]}  d5 {[%clk 0:02:53]} 8. Nd2 {[%clk 0:02:26]}  Bg6 {[%clk 0:02:51]} 9. Bd3 {[%clk 0:02:20]}  Be7 {[%clk 0:02:45]} 10. O-O {[%clk 0:02:20]}  O-O {[%clk 0:02:37]} 11. e5 {[%clk 0:02:19]}  Nfd7 {[%clk 0:02:35]} 12. f4 {[%clk 0:02:11]}  c5 {[%clk 0:02:29]} 13. f5 {[%clk 0:02:02]}  exf5 {[%clk 0:02:28]} 14. Nxd5 {[%clk 0:02:01]}  cxd4 {[%clk 0:02:23]} 15. Bxd4 {[%clk 0:01:58]}  Nc6 {[%clk 0:02:23]} 16. Bc3 {[%clk 0:01:44]}  Ndxe5 {[%clk 0:02:20]} 17. Nxe7+ {[%clk 0:01:44]}  Qxe7 {[%clk 0:02:19]} 18. Bxf5 {[%clk 0:01:39]}  Rad8 {[%clk 0:02:07]} 19. Qe2 {[%clk 0:01:33]}  Qc5+ {[%clk 0:01:57]} 20. Kh1 {[%clk 0:01:28]}  Rfe8 {[%clk 0:01:56]} 21. Rae1 {[%clk 0:01:18]}  Nd4 {[%clk 0:01:46]} 22. Bxd4 {[%clk 0:01:08]}  Rxd4 {[%clk 0:01:27]} 23. Nb3 {[%clk 0:01:06]}  Qd5 {[%clk 0:01:14]} 24. Nxd4 {[%clk 0:01:05]}  Qxd4 {[%clk 0:01:14]} 25. c3 {[%clk 0:01:00]}  Qb6 {[%clk 0:01:08]} 26. Bxg6 {[%clk 0:00:50]}  hxg6 {[%clk 0:01:08]} 27. Qf2 {[%clk 0:00:40]}  Qc7 {[%clk 0:00:57]} 28. Qd4 {[%clk 0:00:36]}  b6 {[%clk 0:00:53]} 29. Rf4 {[%clk 0:00:34]}  f6 {[%clk 0:00:52]} 30. Qd5+ {[%clk 0:00:30]}  Kf8 {[%clk 0:00:47]} 31. Rh4 {[%clk 0:00:28]}  Ke7 {[%clk 0:00:44]} 32. Rh7 {[%clk 0:00:28]}  Kf8 {[%clk 0:00:31]} 33. Rh8+ {[%clk 0:00:24]}  Ke7 {[%clk 0:00:31]} 34. Rxe8+ {[%clk 0:00:22]}  Kxe8 {[%clk 0:00:30]} 35. Qg8+ {[%clk 0:00:23]}  Kd7 {[%clk 0:00:29]} 36. Qxg7+ {[%clk 0:00:24]}  Kc8 {[%clk 0:00:28]} 37. Qxf6 {[%clk 0:00:21]}  Nd7 {[%clk 0:00:28]} 38. Qf3 {[%clk 0:00:17]}  Qd6 {[%clk 0:00:26]} 39. Qa8+ {[%clk 0:00:10]}  Kc7 {[%clk 0:00:25]} 40. Qxa7+ {[%clk 0:00:11]}  Kc6 {[%clk 0:00:25]} 41. Qa4+ {[%clk 0:00:11]}  Kc7 {[%clk 0:00:25]} 42. Qc4+ {[%clk 0:00:10]}  Kb7 {[%clk 0:00:24]} 43. Qe4+ {[%clk 0:00:10]}  Kc7 {[%clk 0:00:23]} 44. Qe6 {[%clk 0:00:09]}  Qd2 {[%clk 0:00:21]} 45. Qe2 {[%clk 0:00:08]}  Qd5 {[%clk 0:00:20]} 46. Rd1 {[%clk 0:00:07]}  Qc6 {[%clk 0:00:19]} 47. Qf3 {[%clk 0:00:06]}  Qe6 {[%clk 0:00:17]} 48. Qg3+ {[%clk 0:00:06]}  Kb7 {[%clk 0:00:15]} 49. Qd6 {[%clk 0:00:05]}  Qxd6 {[%clk 0:00:13]} 50. Rxd6 {[%clk 0:00:06]}  Kc7 {[%clk 0:00:13]} 51. Rxg6 {[%clk 0:00:07]}  Nc5 {[%clk 0:00:13]} 52. h4 {[%clk 0:00:07]}  Nd3 {[%clk 0:00:12]} 53. h5 {[%clk 0:00:07]}  Nxb2 {[%clk 0:00:11]} 54. h6 {[%clk 0:00:08]}  Nd1 {[%clk 0:00:10]} 55. h7 {[%clk 0:00:09]}  Nf2+ {[%clk 0:00:10]} 56. Kh2 {[%clk 0:00:09]}  Ne4 {[%clk 0:00:10]} 57. h8=Q {[%clk 0:00:10]}  Nd6 {[%clk 0:00:10]} 58. Qh7+ {[%clk 0:00:10]}  Kc6 {[%clk 0:00:09]} 59. Rxd6+ {[%clk 0:00:10]}  Kxd6 {[%clk 0:00:09]} 60. Qf5 {[%clk 0:00:11]} 1-0


[Site "https://www.chess.com"]

[Event "Titled Tuesday Blitz February 07 Early 2023"]
[White "Kiseleva, Arina"]
[Black "Ruiz Aguilar, Pablo Alexander"]
[WhiteFideId "4164989"]
[BlackFideId "4401352"]
[WhiteElo "1962"]
[BlackElo "2161"]
[Result "0-1"]
[Round "07"]
[TimeControl "180+2"]
[Date "2023.02.07"]
[WhiteClock "0:00:01"]
[BlackClock "0:00:25"]

1. d4 {[%clk 0:03:00]}  d5 {[%clk 0:02:59]} 2. Nf3 {[%clk 0:03:00]}  c6 {[%clk 0:02:59]} 3. c4 {[%clk 0:02:59]}  Nf6 {[%clk 0:02:58]} 4. Nbd2 {[%clk 0:02:59]}  Bf5 {[%clk 0:02:58]} 5. Nh4 {[%clk 0:02:59]}  Be6 {[%clk 0:02:56]} 6. e3 {[%clk 0:02:57]}  Ne4 {[%clk 0:02:50]} 7. Nxe4 {[%clk 0:02:43]}  dxe4 {[%clk 0:02:50]} 8. f4 {[%clk 0:02:42]}  h6 {[%clk 0:02:41]} 9. f5 {[%clk 0:02:36]}  Bc8 {[%clk 0:02:40]} 10. Qg4 {[%clk 0:02:20]}  g5 {[%clk 0:02:33]} 11. Qxe4 {[%clk 0:02:12]}  gxh4 {[%clk 0:02:34]} 12. Bd3 {[%clk 0:02:02]}  Bg7 {[%clk 0:02:27]} 13. O-O {[%clk 0:02:00]}  Bf6 {[%clk 0:02:27]} 14. Qg4 {[%clk 0:01:49]}  h5 {[%clk 0:02:21]} 15. Qf3 {[%clk 0:01:45]}  Na6 {[%clk 0:02:16]} 16. Rd1 {[%clk 0:01:40]}  Nb4 {[%clk 0:02:07]} 17. Bb1 {[%clk 0:01:33]}  a5 {[%clk 0:02:07]} 18. a3 {[%clk 0:01:33]}  Na6 {[%clk 0:02:07]} 19. Ba2 {[%clk 0:01:26]}  e6 {[%clk 0:01:50]} 20. fxe6 {[%clk 0:01:19]}  Bxe6 {[%clk 0:01:50]} 21. d5 {[%clk 0:01:17]}  Bg4 {[%clk 0:01:50]} 22. Qf1 {[%clk 0:01:14]}  Bxd1 {[%clk 0:01:49]} 23. Qxd1 {[%clk 0:01:11]}  cxd5 {[%clk 0:01:47]} 24. cxd5 {[%clk 0:01:10]}  Qd6 {[%clk 0:01:44]} 25. Qa4+ {[%clk 0:01:08]}  Ke7 {[%clk 0:01:40]} 26. Qe4+ {[%clk 0:01:00]}  Kf8 {[%clk 0:01:34]} 27. Bd2 {[%clk 0:00:49]}  Nc5 {[%clk 0:01:34]} 28. Qf5 {[%clk 0:00:48]}  Qe5 {[%clk 0:01:27]} 29. Qf3 {[%clk 0:00:43]}  Ne4 {[%clk 0:01:25]} 30. Bc3 {[%clk 0:00:27]}  Nxc3 {[%clk 0:01:24]} 31. bxc3 {[%clk 0:00:27]}  Rc8 {[%clk 0:01:16]} 32. Rf1 {[%clk 0:00:23]}  Rh6 {[%clk 0:01:13]} 33. c4 {[%clk 0:00:23]}  b6 {[%clk 0:01:10]} 34. Bb1 {[%clk 0:00:21]}  Kg7 {[%clk 0:01:08]} 35. Bd3 {[%clk 0:00:15]}  Re8 {[%clk 0:01:05]} 36. e4 {[%clk 0:00:15]}  Re7 {[%clk 0:01:00]} 37. Kh1 {[%clk 0:00:15]}  Rg6 {[%clk 0:00:52]} 38. Rb1 {[%clk 0:00:13]}  Bg5 {[%clk 0:00:50]} 39. h3 {[%clk 0:00:12]}  Bf4 {[%clk 0:00:47]} 40. Bc2 {[%clk 0:00:10]}  Rg3 {[%clk 0:00:46]} 41. Qf2 {[%clk 0:00:09]}  Be3 {[%clk 0:00:44]} 42. Qe2 {[%clk 0:00:08]}  Bc5 {[%clk 0:00:41]} 43. Re1 {[%clk 0:00:08]}  f5 {[%clk 0:00:34]} 44. Qd1 {[%clk 0:00:05]}  f4 {[%clk 0:00:33]} 45. Rf1 {[%clk 0:00:05]}  Bd6 {[%clk 0:00:32]} 46. Rf3 {[%clk 0:00:04]}  Rxf3 {[%clk 0:00:31]} 47. gxf3 {[%clk 0:00:01]}  Qg5 {[%clk 0:00:31]} 48. Qf1 {[%clk 0:00:02]}  Qg3 {[%clk 0:00:30]} 49. c5 {[%clk 0:00:02]}  Bxc5 {[%clk 0:00:29]} 50. e5 {[%clk 0:00:01]}  Rxe5 {[%clk 0:00:29]} 51. Be4 {[%clk 0:00:01]}  Rg5 {[%clk 0:00:25]} 0-1


[Site "https://www.chess.com"]

[Event "Titled Tuesday Blitz February 07 Early 2023"]
[White "Bozorov, Makhsum"]
[Black "Gharamian, Tigran"]
[WhiteFideId "14201330"]
[BlackFideId "13301527"]
[WhiteElo "2145"]
[BlackElo "2601"]
[Result "1/2-1/2"]
[Round "07"]
[TimeControl "180+2"]
[Date "2023.02.07"]
[WhiteClock "0:00:14"]
[BlackClock "0:00:25"]

1. d4 {[%clk 0:03:00]}  Nf6 {[%clk 0:02:56]} 2. Nf3 {[%clk 0:03:01]}  d5 {[%clk 0:02:54]} 3. g3 {[%clk 0:03:01]}  e6 {[%clk 0:02:50]} 4. Bg2 {[%clk 0:03:02]}  Be7 {[%clk 0:02:50]} 5. O-O {[%clk 0:03:01]}  O-O {[%clk 0:02:50]} 6. c4 {[%clk 0:03:02]}  dxc4 {[%clk 0:02:50]} 7. Qc2 {[%clk 0:03:02]}  a6 {[%clk 0:02:50]} 8. a4 {[%clk 0:03:02]}  Bd7 {[%clk 0:02:48]} 9. Qxc4 {[%clk 0:03:02]}  Bc6 {[%clk 0:02:46]} 10. Bg5 {[%clk 0:03:03]}  Nbd7 {[%clk 0:02:43]} 11. Nc3 {[%clk 0:03:03]}  h6 {[%clk 0:02:43]} 12. Bxf6 {[%clk 0:03:03]}  Nxf6 {[%clk 0:02:43]} 13. Rfe1 {[%clk 0:03:01]}  Ne4 {[%clk 0:02:34]} 14. Qd3 {[%clk 0:02:21]}  Nxc3 {[%clk 0:02:10]} 15. bxc3 {[%clk 0:02:20]}  a5 {[%clk 0:02:05]} 16. e4 {[%clk 0:02:19]}  Qe8 {[%clk 0:01:51]} 17. Qc2 {[%clk 0:02:17]}  b6 {[%clk 0:01:46]} 18. Ne5 {[%clk 0:02:15]}  Bb7 {[%clk 0:01:46]} 19. c4 {[%clk 0:01:38]}  Bd6 {[%clk 0:01:38]} 20. Nd3 {[%clk 0:01:31]}  e5 {[%clk 0:01:28]} 21. c5 {[%clk 0:01:22]}  Be7 {[%clk 0:01:19]} 22. cxb6 {[%clk 0:01:12]}  cxb6 {[%clk 0:01:15]} 23. Nxe5 {[%clk 0:01:10]}  Bf6 {[%clk 0:01:15]} 24. Nc4 {[%clk 0:01:01]}  Bxd4 {[%clk 0:01:09]} 25. Rad1 {[%clk 0:00:52]}  Rd8 {[%clk 0:01:02]} 26. Qb3 {[%clk 0:00:35]}  Qe6 {[%clk 0:01:01]} 27. Nxa5 {[%clk 0:00:16]}  bxa5 {[%clk 0:00:29]} 28. Qxb7 {[%clk 0:00:15]}  Qf6 {[%clk 0:00:30]} 29. Rf1 {[%clk 0:00:12]}  Bxf2+ {[%clk 0:00:29]} 30. Kh1 {[%clk 0:00:12]}  Qb6 {[%clk 0:00:29]} 31. Qxb6 {[%clk 0:00:10]}  Bxb6 {[%clk 0:00:28]} 32. e5 {[%clk 0:00:11]}  Rd4 {[%clk 0:00:26]} 33. Rxd4 {[%clk 0:00:10]}  Bxd4 {[%clk 0:00:27]} 34. e6 {[%clk 0:00:10]}  fxe6 {[%clk 0:00:25]} 35. Rxf8+ {[%clk 0:00:11]}  Kxf8 {[%clk 0:00:26]} 36. Bc6 {[%clk 0:00:11]}  Ke7 {[%clk 0:00:26]} 37. Kg2 {[%clk 0:00:11]}  Kd6 {[%clk 0:00:26]} 38. Ba8 {[%clk 0:00:11]}  Ke5 {[%clk 0:00:25]} 39. Kf3 {[%clk 0:00:12]}  Bc3 {[%clk 0:00:26]} 40. h3 {[%clk 0:00:12]}  g5 {[%clk 0:00:26]} 41. g4 {[%clk 0:00:12]}  Kd4 {[%clk 0:00:25]} 42. Bc6 {[%clk 0:00:13]}  e5 {[%clk 0:00:25]} 43. Bb7 {[%clk 0:00:12]}  Bd2 {[%clk 0:00:24]} 44. Bc6 {[%clk 0:00:12]}  Bf4 {[%clk 0:00:24]} 45. Bb7 {[%clk 0:00:12]}  Be3 {[%clk 0:00:24]} 46. Bc6 {[%clk 0:00:13]}  Bf4 {[%clk 0:00:24]} 47. Bb7 {[%clk 0:00:13]}  Be3 {[%clk 0:00:24]} 48. Bc6 {[%clk 0:00:14]}  Bf4 {[%clk 0:00:25]} 1/2-1/2


[Site "https://www.chess.com"]

[Event "Titled Tuesday Blitz February 07 Early 2023"]
[White "Winkels, Marcel"]
[Black "Shubenkova, Veronika"]
[WhiteFideId "1003887"]
[BlackFideId "44124040"]
[WhiteElo "1960"]
[BlackElo "1960"]
[Result "0-1"]
[Round "07"]
[TimeControl "180+2"]
[Date "2023.02.07"]
[WhiteClock "0:00:01"]
[BlackClock "0:01:42"]

1. e4 {[%clk 0:03:00]}  e6 {[%clk 0:02:59]} 2. d4 {[%clk 0:02:59]}  d5 {[%clk 0:03:00]} 3. Nc3 {[%clk 0:03:00]}  Nf6 {[%clk 0:02:59]} 4. Bg5 {[%clk 0:02:59]}  Be7 {[%clk 0:03:00]} 5. e5 {[%clk 0:02:59]}  Nfd7 {[%clk 0:02:59]} 6. h4 {[%clk 0:02:59]}  h6 {[%clk 0:02:59]} 7. Qh5 {[%clk 0:02:53]}  a6 {[%clk 0:02:55]} 8. Bd3 {[%clk 0:02:49]}  c5 {[%clk 0:02:53]} 9. dxc5 {[%clk 0:02:46]}  Nxe5 {[%clk 0:02:50]} 10. O-O-O {[%clk 0:02:18]}  Nxd3+ {[%clk 0:02:50]} 11. Rxd3 {[%clk 0:02:17]}  Nc6 {[%clk 0:02:50]} 12. f4 {[%clk 0:02:03]}  g6 {[%clk 0:02:42]} 13. Bxe7 {[%clk 0:02:01]}  Qxe7 {[%clk 0:02:42]} 14. Qe2 {[%clk 0:02:00]}  Nb4 {[%clk 0:02:30]} 15. Rd1 {[%clk 0:01:51]}  Bd7 {[%clk 0:02:15]} 16. Qe5 {[%clk 0:01:43]}  O-O-O {[%clk 0:02:02]} 17. Nxd5 {[%clk 0:01:20]}  Nxd5 {[%clk 0:02:02]} 18. Rxd5 {[%clk 0:01:18]}  Bc6 {[%clk 0:02:02]} 19. Rd2 {[%clk 0:01:05]}  f6 {[%clk 0:02:00]} 20. Qe3 {[%clk 0:01:01]}  Rxd2 {[%clk 0:01:59]} 21. Kxd2 {[%clk 0:00:53]}  Rd8+ {[%clk 0:01:59]} 22. Kc1 {[%clk 0:00:52]}  Bxg2 {[%clk 0:01:58]} 23. Rh2 {[%clk 0:00:47]}  Bd5 {[%clk 0:01:58]} 24. Ne2 {[%clk 0:00:35]}  e5 {[%clk 0:01:58]} 25. Nc3 {[%clk 0:00:30]}  Bc6 {[%clk 0:01:56]} 26. Re2 {[%clk 0:00:25]}  Re8 {[%clk 0:01:51]} 27. a3 {[%clk 0:00:20]}  e4 {[%clk 0:01:51]} 28. b4 {[%clk 0:00:17]}  f5 {[%clk 0:01:51]} 29. Qg3 {[%clk 0:00:14]}  Qf6 {[%clk 0:01:50]} 30. Kb2 {[%clk 0:00:12]}  Rd8 {[%clk 0:01:48]} 31. h5 {[%clk 0:00:10]}  g5 {[%clk 0:01:47]} 32. fxg5 {[%clk 0:00:09]}  hxg5 {[%clk 0:01:46]} 33. Rg2 {[%clk 0:00:04]}  Rg8 {[%clk 0:01:44]} 34. Qe3 {[%clk 0:00:01]}  f4 {[%clk 0:01:42]} 0-1


[Site "https://www.chess.com"]

[Event "Titled Tuesday Blitz February 07 Early 2023"]
[White "Balint, Vilmos"]
[Black "Osiecki, Stanislaw"]
[WhiteFideId "718050"]
[BlackFideId "1102990"]
[WhiteElo "2169"]
[BlackElo "2055"]
[Result "0-1"]
[Round "07"]
[TimeControl "180+2"]
[Date "2023.02.07"]
[WhiteClock "0:02:56"]
[BlackClock "0:02:45"]

1. e4 {[%clk 0:02:56]}  e6 {[%clk 0:02:58]} 2. d4 {[%clk 0:02:57]}  d5 {[%clk 0:02:53]} 3. Nc3 {[%clk 0:02:56]}  Bb4 {[%clk 0:02:52]} 4. exd5 {[%clk 0:02:55]}  exd5 {[%clk 0:02:51]} 5. Bd3 {[%clk 0:02:56]}  Nc6 {[%clk 0:02:51]} 6. Ne2 {[%clk 0:02:55]}  Bg4 {[%clk 0:02:51]} 7. f3 {[%clk 0:02:55]}  Bh5 {[%clk 0:02:51]} 8. O-O {[%clk 0:02:55]}  Nge7 {[%clk 0:02:52]} 9. Re1 {[%clk 0:02:55]}  O-O {[%clk 0:02:50]} 10. Bd2 {[%clk 0:02:56]}  Bg6 {[%clk 0:02:49]} 11. a3 {[%clk 0:02:56]}  Bd6 {[%clk 0:02:48]} 12. Bxg6 {[%clk 0:02:56]}  Nxg6 {[%clk 0:02:46]} 13. Bf4 {[%clk 0:02:56]}  Nxf4 {[%clk 0:02:45]} 0-1


[Site "https://www.chess.com"]